[Event "SS Manhem Chess Week 2019 GM and IM tournaments"]
[Site "Molnlycke kulturhus, Biblioteksgatan 2, Molnlycke, Sweden"]
[Date "2019.08.15"]
[Round "8.9"]
[White "Ornstein, Axel"]
[Black "Hill, Alistair"]
[Result "1/2-1/2"]
[TimeControl "90 minutes for 40 moves + 30 minutes for the rest of the game + 30 seconds per move from move one."]
[WhiteTitle "IM"]
[WhiteFideId "1700111"]
[BlackFideId "432407"]
[WhiteElo "2311"]
[BlackElo "2224"]

1. d4 {[%clk 01:30:30]} {[%emt 00:58:04]} Nf6 {[%clk 01:27:56]} {[%emt
00:03:04]} 2. c4 {[%clk 01:30:55]} {[%emt 00:00:10]} g6 {[%clk 01:28:20]}
{[%emt 00:00:07]} 3. g3 {[%clk 01:29:47]} {[%emt 00:01:37]} Bg7 {[%clk
01:27:55]} {[%emt 00:00:55]} 4. Bg2 {[%clk 01:30:11]} {[%emt 00:00:06]} O-O
{[%clk 01:28:22]} {[%emt 00:00:04]} 5. Nc3 {[%clk 01:30:35]} {[%emt 00:00:06]}
d6 {[%clk 01:28:15]} {[%emt 00:00:36]} 6. Nf3 {[%clk 01:30:58]} {[%emt
00:00:06]} c5 {[%clk 01:27:16]} {[%emt 00:01:30]} 7. dxc5 {[%clk 00:58:09]}
{[%emt 00:33:19]} dxc5 {[%clk 01:26:59]} {[%emt 00:00:46]} 8. Qxd8 {[%clk
00:58:33]} {[%emt 00:00:07]} Rxd8 {[%clk 01:27:24]} {[%emt 00:00:04]} 9. Be3
{[%clk 00:58:59]} {[%emt 00:00:05]} Nc6 {[%clk 01:15:44]} {[%emt 00:12:10]} 10.
Bxc5 {[%clk 00:57:44]} {[%emt 00:01:45]} Be6 {[%clk 01:16:10]} {[%emt
00:00:04]} 11. Nd2 {[%clk 00:55:30]} {[%emt 00:02:44]} Rac8 {[%clk 01:16:14]}
{[%emt 00:00:26]} 12. Bxc6 {[%clk 00:52:18]} {[%emt 00:03:42]} Rxc6 {[%clk
01:16:36]} {[%emt 00:00:08]} 13. Bxe7 {[%clk 00:52:44]} {[%emt 00:00:04]} Rd7
{[%clk 01:16:10]} {[%emt 00:00:56]} 14. Bxf6 {[%clk 00:41:51]} {[%emt
00:11:23]} Bxf6 {[%clk 01:16:34]} {[%emt 00:00:06]} 15. O-O-O {[%clk 00:42:14]}
{[%emt 00:00:06]} Bxc3 {[%clk 01:11:19]} {[%emt 00:05:46]} 16. bxc3 {[%clk
00:42:35]} {[%emt 00:00:09]} Rdc7 {[%clk 01:11:48]} {[%emt 00:00:01]} 17. Kb2
{[%clk 00:37:18]} {[%emt 00:05:47]} Rb6+ {[%clk 01:01:28]} {[%emt 00:10:50]} 18.
Kc2 {[%clk 00:36:50]} {[%emt 00:00:59]} Ra6 {[%clk 01:01:55]} {[%emt 00:00:02]}
19. Ra1 {[%clk 00:36:50]} {[%emt 00:00:30]} Bd7 {[%clk 00:50:19]} {[%emt
00:12:06]} 20. Rhb1 {[%clk 00:36:19]} {[%emt 00:00:59]} Ba4+ {[%clk 00:49:19]}
{[%emt 00:01:31]} 21. Kc1 {[%clk 00:36:35]} {[%emt 00:00:14]} b5 {[%clk
00:45:13]} {[%emt 00:04:36]} 22. a3 {[%clk 00:24:25]} {[%emt 00:12:40]} Re6
{[%clk 00:45:12]} {[%emt 00:00:31]} 23. e3 {[%clk 00:23:55]} {[%emt 00:01:01]}
f5 {[%clk 00:42:06]} {[%emt 00:03:36]} 24. Rb4 {[%clk 00:21:48]} {[%emt
00:02:36]} Rd6 {[%clk 00:39:53]} {[%emt 00:02:44]} 25. Nb3 {[%clk 00:18:45]}
{[%emt 00:03:34]} Bxb3 {[%clk 00:30:38]} {[%emt 00:09:44]} 26. Rxb3 {[%clk
00:18:58]} {[%emt 00:00:16]} Rcd7 {[%clk 00:31:05]} {[%emt 00:00:04]} 27. Rab1
{[%clk 00:18:33]} {[%emt 00:00:55]} bxc4 {[%clk 00:22:10]} {[%emt 00:09:25]} 28.
Rb8+ {[%clk 00:18:57]} {[%emt 00:00:07]} 1/2-1/2

[Event "SS Manhem Chess Week 2019 GM and IM tournaments"]
[Site "Molnlycke kulturhus, Biblioteksgatan 2, Molnlycke, Sweden"]
[Date "2019.08.15"]
[Round "8.10"]
[White "Kucuksari, Kaan"]
[Black "Renman, Nils-Gustaf"]
[Result "1-0"]
[TimeControl "90 minutes for 40 moves + 30 minutes for the rest of the game + 30 seconds per move from move one."]
[WhiteTitle "FM"]
[BlackTitle "IM"]
[WhiteFideId "6380166"]
[BlackFideId "1700367"]
[WhiteElo "2286"]
[BlackElo "2346"]

1. d4 {[%clk 01:30:59]} d5 {[%clk 01:30:41]} {[%emt 00:00:19]} 2. Nf3 {[%clk
01:31:24]} {[%emt 00:00:04]} Nf6 {[%clk 01:30:35]} {[%emt 00:00:36]} 3. c4
{[%clk 01:31:47]} {[%emt 00:00:08]} c6 {[%clk 01:31:00]} {[%emt 00:00:05]} 4.
Qc2 {[%clk 01:32:10]} {[%emt 00:00:06]} dxc4 {[%clk 01:29:48]} {[%emt
00:01:43]} 5. e4 {[%clk 01:32:33]} {[%emt 00:00:07]} b5 {[%clk 01:28:16]}
{[%emt 00:02:02]} 6. b3 {[%clk 01:33:01]} {[%emt 00:00:02]} cxb3 {[%clk
01:28:21]} {[%emt 00:00:25]} 7. axb3 {[%clk 01:33:29]} {[%emt 00:00:02]} e6
{[%clk 01:27:40]} {[%emt 00:01:11]} 8. Bd2 {[%clk 01:33:52]} {[%emt 00:00:07]}
Bb7 {[%clk 01:26:32]} {[%emt 00:01:38]} 9. Ba5 {[%clk 01:34:12]} {[%emt
00:00:10]} Qc8 {[%clk 01:25:02]} {[%emt 00:02:00]} 10. Bd3 {[%clk 01:34:27]}
{[%emt 00:00:15]} Na6 {[%clk 01:17:45]} {[%emt 00:07:47]} 11. Qd2 {[%clk
01:31:17]} {[%emt 00:03:40]} Be7 {[%clk 01:12:27]} {[%emt 00:05:49]} 12. O-O
{[%clk 01:26:53]} {[%emt 00:04:54]} O-O {[%clk 01:06:51]} {[%emt 00:06:07]} 13.
b4 {[%clk 01:26:20]} {[%emt 00:01:03]} Nd7 {[%clk 00:48:00]} {[%emt 00:19:21]}
14. Rc1 {[%clk 01:18:51]} {[%emt 00:07:58]} Qb8 {[%clk 00:48:24]} {[%emt
00:00:06]} 15. Na3 {[%clk 01:14:18]} {[%emt 00:05:03]} Rc8 {[%clk 00:28:35]}
{[%emt 00:20:19]} 16. e5 {[%clk 01:10:32]} {[%emt 00:04:16]} Nb6 {[%clk
00:27:06]} {[%emt 00:01:59]} 17. Ng5 {[%clk 01:06:10]} {[%emt 00:04:52]} h6
{[%clk 00:25:41]} {[%emt 00:01:55]} 18. Ne4 {[%clk 01:04:34]} {[%emt 00:02:05]}
Nd5 {[%clk 00:25:58]} {[%emt 00:00:13]} 19. Nc2 {[%clk 01:03:58]} {[%emt
00:01:07]} Rf8 {[%clk 00:23:30]} {[%emt 00:02:58]} 20. Re1 {[%clk 01:00:54]}
{[%emt 00:03:34]} Qe8 {[%clk 00:21:59]} {[%emt 00:02:01]} 21. Ra3 {[%clk
00:58:35]} {[%emt 00:02:49]} Qd7 {[%clk 00:19:23]} {[%emt 00:03:06]} 22. Qe2
{[%clk 00:34:01]} {[%emt 00:25:03]} f5 {[%clk 00:12:02]} {[%emt 00:07:50]} 23.
exf6 {[%clk 00:33:33]} {[%emt 00:00:58]} Bxf6 {[%clk 00:12:31]} {[%emt
00:00:02]} 24. Qg4 {[%clk 00:30:32]} {[%emt 00:03:31]} Rae8 {[%clk 00:04:20]}
{[%emt 00:08:41]} 25. Qg6 {[%clk 00:28:57]} {[%emt 00:02:05]} Qf7 {[%clk
00:01:35]} {[%emt 00:03:16]} 26. Qxf7+ {[%clk 00:26:54]} {[%emt 00:02:33]} Rxf7
{[%clk 00:02:03]} {[%emt 00:00:02]} 27. Nd6 {[%clk 00:27:20]} {[%emt 00:00:04]}
Ree7 {[%clk 00:02:07]} {[%emt 00:00:26]} 28. Bd8 {[%clk 00:13:36]} {[%emt
00:14:14]} Rd7 {[%clk 00:02:35]} {[%emt 00:00:02]} 29. Nxb7 {[%clk 00:13:55]}
{[%emt 00:00:11]} Bxd8 {[%clk 00:00:54]} {[%emt 00:02:11]} 30. Nxd8 {[%clk
00:12:30]} {[%emt 00:01:55]} Rxd8 {[%emt 00:01:42]} 1-0

[Event "SS Manhem Chess Week 2019 GM and IM tournaments"]
[Site "Molnlycke kulturhus, Biblioteksgatan 2, Molnlycke, Sweden"]
[Date "2019.08.16"]
[Round "9.1"]
[White "Seo, Jung Min"]
[Black "Haubro, Martin"]
[Result "1/2-1/2"]
[TimeControl "90 minutes for 40 moves + 30 minutes for the rest of the game + 30 seconds per move from move one."]
[WhiteTitle "FM"]
[BlackTitle "IM"]
[WhiteFideId "1734687"]
[BlackFideId "1414291"]
[WhiteElo "2409"]
[BlackElo "2374"]

1. e4 {[%clk 01:30:58]} {[%emt 00:00:01]} e5 {[%clk 01:30:50]} {[%emt
00:00:10]} 2. Nf3 {[%clk 01:31:23]} {[%emt 00:00:06]} Nc6 {[%clk 01:31:17]}
{[%emt 00:00:04]} 3. Bb5 {[%clk 01:31:49]} {[%emt 00:00:04]} Nf6 {[%clk
01:31:42]} {[%emt 00:00:04]} 4. d3 {[%clk 01:32:10]} {[%emt 00:00:09]} Bc5
{[%clk 01:32:01]} {[%emt 00:00:11]} 5. c3 {[%clk 01:32:26]} {[%emt 00:00:15]}
O-O {[%clk 01:32:17]} {[%emt 00:00:14]} 6. O-O {[%clk 01:30:43]} {[%emt
00:02:14]} Re8 {[%clk 01:32:36]} {[%emt 00:00:10]} 7. Nbd2 {[%clk 01:29:53]}
{[%emt 00:01:20]} a6 {[%clk 01:31:25]} {[%emt 00:01:41]} 8. Ba4 {[%clk
01:29:10]} {[%emt 00:01:13]} b5 {[%clk 01:29:19]} {[%emt 00:02:36]} 9. Bc2
{[%clk 01:29:29]} {[%emt 00:00:10]} d6 {[%clk 01:29:34]} {[%emt 00:00:15]} 10.
h3 {[%clk 01:28:58]} {[%emt 00:01:02]} Bb6 {[%clk 01:28:31]} {[%emt 00:01:32]}
11. Re1 {[%clk 01:28:51]} {[%emt 00:00:38]} h6 {[%clk 01:17:19]} {[%emt
00:11:42]} 12. Nf1 {[%clk 01:29:03]} {[%emt 00:00:18]} d5 {[%clk 01:14:43]}
{[%emt 00:03:07]} 13. Qe2 {[%clk 01:17:11]} {[%emt 00:12:22]} Be6 {[%clk
01:11:54]} {[%emt 00:03:18]} 14. Rd1 {[%clk 01:16:05]} {[%emt 00:01:36]} Qd7
{[%clk 01:10:32]} {[%emt 00:01:52]} 15. Ng3 {[%clk 01:13:28]} {[%emt 00:03:08]}
d4 {[%clk 01:06:09]} {[%emt 00:04:53]} 16. Kh2 {[%clk 01:11:12]} {[%emt
00:02:46]} a5 {[%clk 01:05:09]} {[%emt 00:01:30]} 1/2-1/2

[Event "SS Manhem Chess Week 2019 GM and IM tournaments"]
[Site "Molnlycke kulturhus, Biblioteksgatan 2, Molnlycke, Sweden"]
[Date "2019.08.16"]
[Round "9.2"]
[White "Blomqvist, Erik"]
[Black "Wiedenkeller, Michael"]
[Result "1/2-1/2"]
[TimeControl "90 minutes for 40 moves + 30 minutes for the rest of the game + 30 seconds per move from move one."]
[WhiteTitle "GM"]
[BlackTitle "IM"]
[WhiteFideId "1709437"]
[BlackFideId "1700146"]
[WhiteElo "2507"]
[BlackElo "2456"]

1. e4 {[%clk 01:30:54]} {[%emt 00:00:03]} e6 {[%clk 01:30:15]} {[%emt
00:00:46]} 2. d4 {[%clk 01:30:52]} {[%emt 00:00:32]} d5 {[%clk 01:30:37]}
{[%emt 00:00:09]} 3. e5 {[%clk 01:31:16]} {[%emt 00:00:06]} c5 {[%clk
01:30:19]} {[%emt 00:00:46]} 4. c3 {[%clk 01:31:39]} {[%emt 00:00:08]} Nc6
{[%clk 01:30:39]} {[%emt 00:00:10]} 5. Nf3 {[%clk 01:31:58]} {[%emt 00:00:10]}
Qb6 {[%clk 01:30:30]} {[%emt 00:00:40]} 6. a3 {[%clk 01:32:03]} {[%emt
00:00:26]} Bd7 {[%clk 01:30:00]} {[%emt 00:01:00]} 7. b4 {[%clk 01:31:07]}
{[%emt 00:01:26]} cxd4 {[%clk 01:30:20]} {[%emt 00:00:10]} 8. cxd4 {[%clk
01:31:29]} {[%emt 00:00:08]} Rc8 {[%clk 01:30:41]} {[%emt 00:00:08]} 9. Be3
{[%clk 01:23:38]} {[%emt 00:08:21]} Nh6 {[%clk 01:24:23]} {[%emt 00:06:48]} 10.
Bd3 {[%clk 01:23:51]} {[%emt 00:00:17]} Ng4 {[%clk 01:20:53]} {[%emt 00:04:01]}
11. O-O {[%clk 01:24:07]} {[%emt 00:00:13]} Be7 {[%clk 01:16:59]} {[%emt
00:04:25]} 12. Qe1 {[%clk 01:13:45]} {[%emt 00:10:52]} Nxe3 {[%clk 01:12:19]}
{[%emt 00:05:10]} 13. fxe3 {[%clk 01:13:40]} {[%emt 00:00:35]} O-O {[%clk
01:07:35]} {[%emt 00:05:14]} 14. Nc3 {[%clk 01:13:17]} {[%emt 00:00:52]} Nb8
{[%clk 00:58:13]} {[%emt 00:09:52]} 15. e4 {[%clk 00:59:14]} {[%emt 00:14:33]}
dxe4 {[%clk 00:50:28]} {[%emt 00:08:15]} 16. Nxe4 {[%clk 00:52:22]} {[%emt
00:07:21]} Bb5 {[%clk 00:44:11]} {[%emt 00:06:48]} 17. Qe2 {[%clk 00:48:36]}
{[%emt 00:04:17]} Bxd3 {[%clk 00:42:14]} {[%emt 00:02:27]} 18. Qxd3 {[%clk
00:49:03]} {[%emt 00:00:02]} h6 {[%clk 00:35:37]} {[%emt 00:07:08]} 19. Rac1
{[%clk 00:48:07]} {[%emt 00:01:25]} Nc6 {[%clk 00:34:28]} {[%emt 00:01:39]} 20.
Kh1 {[%clk 00:41:04]} {[%emt 00:07:33]} Rcd8 {[%clk 00:32:54]} {[%emt
00:02:05]} 21. Rcd1 {[%clk 00:28:21]} {[%emt 00:13:13]} Rd7 {[%clk 00:27:54]}
{[%emt 00:05:29]} 1/2-1/2

[Event "SS Manhem Chess Week 2019 GM and IM tournaments"]
[Site "Molnlycke kulturhus, Biblioteksgatan 2, Molnlycke, Sweden"]
[Date "2019.08.16"]
[Round "9.4"]
[White "Urkedal, Frode Olav Olsen"]
[Black "Hector, Jonny"]
[Result "1-0"]
[TimeControl "90 minutes for 40 moves + 30 minutes for the rest of the game + 30 seconds per move from move one."]
[WhiteTitle "GM"]
[BlackTitle "GM"]
[WhiteFideId "1506102"]
[BlackFideId "1700090"]
[WhiteElo "2566"]
[BlackElo "2493"]

1. d4 {[%clk 01:30:57]} {[%emt 00:00:02]} d5 {[%clk 01:30:49]} {[%emt
00:00:11]} 2. c4 {[%clk 01:31:20]} {[%emt 00:00:07]} c6 {[%clk 01:31:15]}
{[%emt 00:00:04]} 3. cxd5 {[%clk 01:31:46]} {[%emt 00:00:05]} cxd5 {[%clk
01:31:36]} {[%emt 00:00:09]} 4. Nc3 {[%clk 01:32:14]} {[%emt 00:00:03]} Nf6
{[%clk 01:31:23]} {[%emt 00:00:42]} 5. Bf4 {[%clk 01:32:35]} {[%emt 00:00:09]}
Nc6 {[%clk 01:31:36]} {[%emt 00:00:17]} 6. e3 {[%clk 01:32:53]} {[%emt
00:00:13]} Bf5 {[%clk 01:31:37]} {[%emt 00:00:28]} 7. Qb3 {[%clk 01:33:19]}
{[%emt 00:00:06]} Na5 {[%clk 01:31:45]} {[%emt 00:00:21]} 8. Qa4+ {[%clk
01:33:42]} {[%emt 00:00:07]} Bd7 {[%clk 01:32:07]} {[%emt 00:00:07]} 9. Qc2
{[%clk 01:34:10]} {[%emt 00:00:03]} e6 {[%clk 01:31:23]} {[%emt 00:01:13]} 10.
Nf3 {[%clk 01:33:26]} {[%emt 00:01:15]} Rc8 {[%clk 01:31:02]} {[%emt 00:00:50]}
11. Bd3 {[%clk 01:33:40]} {[%emt 00:00:17]} Nc6 {[%clk 01:30:58]} {[%emt
00:00:33]} 12. a3 {[%clk 01:33:44]} {[%emt 00:00:27]} Nh5 {[%clk 01:30:10]}
{[%emt 00:01:17]} 13. Bg5 {[%clk 01:33:58]} {[%emt 00:00:17]} Be7 {[%clk
01:25:15]} {[%emt 00:05:25]} 14. Bxe7 {[%clk 01:34:20]} {[%emt 00:00:09]} Qxe7
{[%clk 01:25:26]} {[%emt 00:00:18]} 15. O-O {[%clk 01:34:43]} {[%emt 00:00:08]}
Nf6 {[%clk 01:22:37]} {[%emt 00:03:18]} 16. Rfc1 {[%clk 01:32:32]} {[%emt
00:02:42]} O-O {[%clk 01:21:21]} {[%emt 00:01:46]} 17. Qb3 {[%clk 01:21:23]}
{[%emt 00:11:38]} Rfd8 {[%clk 01:12:57]} {[%emt 00:08:55]} 18. h3 {[%clk
01:07:12]} {[%emt 00:14:42]} Na5 {[%clk 01:09:08]} {[%emt 00:04:18]} 19. Qa2
{[%clk 01:07:26]} {[%emt 00:00:17]} Nc4 {[%clk 01:07:09]} {[%emt 00:02:28]} 20.
Rc2 {[%clk 01:05:50]} {[%emt 00:02:06]} Nd6 {[%clk 01:05:03]} {[%emt 00:02:36]}
21. Rac1 {[%clk 01:06:00]} {[%emt 00:00:21]} Nfe4 {[%clk 00:59:30]} {[%emt
00:06:03]} 22. Bxe4 {[%clk 00:43:14]} {[%emt 00:23:16]} dxe4 {[%clk 00:57:55]}
{[%emt 00:02:06]} 23. Nd2 {[%clk 00:43:18]} {[%emt 00:00:26]} f5 {[%clk
00:53:41]} {[%emt 00:04:42]} 24. Qb3 {[%clk 00:39:33]} {[%emt 00:04:16]} Kh8
{[%clk 00:50:56]} {[%emt 00:03:15]} 25. Qb4 {[%clk 00:34:20]} {[%emt 00:05:44]}
Rc6 {[%clk 00:45:17]} {[%emt 00:06:09]} 26. Ne2 {[%clk 00:23:36]} {[%emt
00:11:14]} Qe8 {[%clk 00:38:36]} {[%emt 00:07:11]} 27. Rxc6 {[%clk 00:19:59]}
{[%emt 00:04:09]} Bxc6 {[%clk 00:38:56]} {[%emt 00:00:08]} 28. Qa5 {[%clk
00:18:40]} {[%emt 00:01:50]} Bb5 {[%clk 00:31:56]} {[%emt 00:07:29]} 29. Nc3
{[%clk 00:11:17]} {[%emt 00:07:53]} Rc8 {[%clk 00:30:53]} {[%emt 00:01:33]} 30.
Qxa7 {[%clk 00:11:21]} {[%emt 00:00:26]} Qd8 {[%clk 00:30:37]} {[%emt
00:00:45]} 31. Na2 {[%clk 00:10:32]} {[%emt 00:01:20]} Rxc1+ {[%clk 00:22:03]}
{[%emt 00:09:04]} 32. Nxc1 {[%clk 00:10:54]} {[%emt 00:00:08]} b6 {[%clk
00:19:32]} {[%emt 00:03:00]} 33. Na2 {[%clk 00:10:17]} {[%emt 00:01:08]} g5
{[%clk 00:14:35]} {[%emt 00:05:27]} 34. Nc3 {[%clk 00:10:07]} {[%emt 00:00:40]}
Bc6 {[%clk 00:11:05]} {[%emt 00:03:59]} 35. a4 {[%clk 00:06:18]} {[%emt
00:04:20]} f4 {[%clk 00:10:00]} {[%emt 00:01:34]} 36. a5 {[%clk 00:06:35]}
{[%emt 00:00:15]} fxe3 {[%clk 00:08:31]} {[%emt 00:01:58]} 37. fxe3 {[%clk
00:07:01]} {[%emt 00:00:05]} g4 {[%clk 00:03:17]} {[%emt 00:05:44]} 38. Qxb6
{[%clk 00:04:36]} {[%emt 00:02:55]} Qxb6 {[%clk 00:03:04]} {[%emt 00:00:42]} 39.
axb6 {[%clk 00:05:02]} {[%emt 00:00:04]} gxh3 {[%clk 00:03:26]} {[%emt
00:00:08]} 40. gxh3 {[%clk 00:05:23]} {[%emt 00:00:09]} Kg7 {[%clk 00:03:03]}
{[%emt 00:00:53]} 41. b3 {[%clk 00:01:53]} {[%emt 00:04:00]} Kf6 {[%clk
00:02:29]} {[%emt 00:01:03]} 42. Nc4 {[%clk 00:01:58]} {[%emt 00:00:26]} Ke7
{[%clk 00:01:48]} {[%emt 00:01:11]} 43. Na4 {[%clk 00:00:58]} {[%emt 00:01:30]}
1-0

[Event "SS Manhem Chess Week 2019 GM and IM tournaments"]
[Site "Molnlycke kulturhus, Biblioteksgatan 2, Molnlycke, Sweden"]
[Date "2019.08.16"]
[Round "9.5"]
[White "Ahlander, Bjorn"]
[Black "Lindgren, Philip"]
[Result "1-0"]
[TimeControl "90 minutes for 40 moves + 30 minutes for the rest of the game + 30 seconds per move from move one."]
[WhiteTitle "IM"]
[BlackTitle "IM"]
[WhiteFideId "1700251"]
[BlackFideId "1713230"]
[WhiteElo "2390"]
[BlackElo "2362"]

1. d4 {[%clk 01:30:54]} {[%emt 00:00:05]} Nf6 {[%clk 01:29:25]} {[%emt
00:01:36]} 2. c4 {[%clk 01:31:16]} {[%emt 00:00:07]} e6 {[%clk 01:29:50]}
{[%emt 00:00:05]} 3. Nc3 {[%clk 01:31:41]} {[%emt 00:00:05]} Bb4 {[%clk
01:27:14]} {[%emt 00:03:06]} 4. e3 {[%clk 01:30:16]} {[%emt 00:01:54]} O-O
{[%clk 01:26:20]} {[%emt 00:01:24]} 5. Bd3 {[%clk 01:30:40]} {[%emt 00:00:06]}
d5 {[%clk 01:25:11]} {[%emt 00:01:40]} 6. Nf3 {[%clk 01:31:03]} {[%emt
00:00:07]} c5 {[%clk 01:24:15]} {[%emt 00:01:26]} 7. O-O {[%clk 01:31:24]}
{[%emt 00:00:09]} cxd4 {[%clk 01:21:41]} {[%emt 00:03:04]} 8. exd4 {[%clk
01:31:07]} {[%emt 00:00:46]} dxc4 {[%clk 01:21:26]} {[%emt 00:00:45]} 9. Bxc4
{[%clk 01:31:34]} {[%emt 00:00:03]} b6 {[%clk 01:17:51]} {[%emt 00:04:05]} 10.
Bg5 {[%clk 01:31:27]} {[%emt 00:00:36]} Bb7 {[%clk 01:14:22]} {[%emt 00:04:00]}
11. Ne5 {[%clk 01:31:42]} {[%emt 00:00:13]} Be7 {[%clk 01:07:53]} {[%emt
00:07:00]} 12. Qb3 {[%clk 01:24:25]} {[%emt 00:07:47]} Nc6 {[%clk 00:38:38]}
{[%emt 00:29:46]} 13. Bxe6 {[%clk 01:15:49]} {[%emt 00:09:05]} Nxd4 {[%clk
00:33:33]} {[%emt 00:05:35]} 14. Bxf7+ {[%clk 01:15:47]} {[%emt 00:00:32]} Kh8
{[%clk 00:32:58]} {[%emt 00:01:05]} 15. Qd1 {[%clk 01:16:13]} {[%emt 00:00:03]}
Bc5 {[%clk 00:24:49]} {[%emt 00:08:40]} 16. Bc4 {[%clk 01:05:53]} {[%emt
00:10:49]} b5 {[%clk 00:17:20]} {[%emt 00:08:00]} 17. Nf7+ {[%clk 00:46:21]}
{[%emt 00:20:01]} Rxf7 {[%clk 00:17:44]} {[%emt 00:00:07]} 18. Bxf7 {[%clk
00:46:48]} {[%emt 00:00:03]} Qd7 {[%clk 00:12:57]} {[%emt 00:05:17]} 19. Bxf6
{[%clk 00:44:09]} {[%emt 00:03:08]} gxf6 {[%clk 00:13:19]} {[%emt 00:00:08]} 20.
Qh5 {[%clk 00:43:05]} {[%emt 00:01:33]} b4 {[%clk 00:08:46]} {[%emt 00:05:04]}
21. Nd5 {[%clk 00:29:33]} {[%emt 00:14:01]} Rf8 {[%clk 00:01:48]} {[%emt
00:07:29]} 22. Qxh7+ {[%clk 00:28:56]} {[%emt 00:01:07]} Kxh7 {[%clk 00:02:12]}
{[%emt 00:00:06]} 23. Nxf6+ {[%clk 00:29:18]} {[%emt 00:00:07]} Kh8 {[%clk
00:00:34]} {[%emt 00:02:09]} 24. Nxd7 {[%clk 00:29:45]} {[%emt 00:00:03]} Rxf7
{[%clk 00:00:34]} {[%emt 00:00:30]} 25. Nxc5 {[%clk 00:30:06]} {[%emt
00:00:08]} Nf3+ {[%clk 00:00:32]} {[%emt 00:00:32]} 26. Kh1 {[%clk 00:29:57]}
{[%emt 00:00:39]} Bc6 {[%clk 00:00:31]} {[%emt 00:00:32]} 27. Rad1 {[%clk
00:25:31]} {[%emt 00:04:56]} 1-0